[Event "Early-Titled-Tuesday-Blitz-September-26-2023"]
[Site "Chess.com"]
[Date "2023.09.26"]
[Round "11"]
[White "HajiyevKanan"]
[Black "ElenaPershina"]
[Result "0-1"]
[WhiteElo "2475"]
[BlackElo "2343"]
[TimeControl "180+1"]
[EndTime "10:08:09 PDT"]
[Termination "ElenaPershina won by checkmate"]

1. d4 {[%clk 0:03:00.9]} 1... d5 {[%clk 0:02:59.1]} 2. Nf3 {[%clk 0:03:01.8]}
2... Nf6 {[%clk 0:02:58.5]} 3. c4 {[%clk 0:03:00.5]} 3... c6 {[%clk 0:02:58.9]}
4. cxd5 {[%clk 0:03:01.4]} 4... cxd5 {[%clk 0:02:58.6]} 5. Nc3 {[%clk
0:03:02.1]} 5... Nc6 {[%clk 0:02:58.5]} 6. Bg5 {[%clk 0:03:02.8]} 6... Ne4
{[%clk 0:02:53.5]} 7. Bf4 {[%clk 0:03:03.1]} 7... Nxc3 {[%clk 0:02:50.6]} 8.
bxc3 {[%clk 0:03:04]} 8... e6 {[%clk 0:02:37.1]} 9. e3 {[%clk 0:03:00.3]} 9...
Bd6 {[%clk 0:02:36.2]} 10. Bd3 {[%clk 0:03:00.9]} 10... Bxf4 {[%clk 0:02:31.9]}
11. exf4 {[%clk 0:03:01.8]} 11... h6 {[%clk 0:02:30.1]} 12. O-O {[%clk
0:03:01.8]} 12... O-O {[%clk 0:02:28.1]} 13. Kh1 {[%clk 0:02:56.8]} 13... Bd7
{[%clk 0:02:26.9]} 14. g4 {[%clk 0:02:56.3]} 14... Rc8 {[%clk 0:02:24.8]} 15. g5
{[%clk 0:02:53.9]} 15... h5 {[%clk 0:02:22.7]} 16. h4 {[%clk 0:02:20.9]} 16...
g6 {[%clk 0:02:21.1]} 17. Rc1 {[%clk 0:02:15.3]} 17... Na5 {[%clk 0:02:12.4]}
18. Ne5 {[%clk 0:02:13.8]} 18... Kg7 {[%clk 0:02:10.5]} 19. Qc2 {[%clk
0:02:12.1]} 19... Be8 {[%clk 0:02:08.4]} 20. Rb1 {[%clk 0:01:56.7]} 20... a6
{[%clk 0:02:07.3]} 21. Rfc1 {[%clk 0:01:52.3]} 21... b5 {[%clk 0:02:05.4]} 22.
Qe2 {[%clk 0:01:52.4]} 22... Qc7 {[%clk 0:01:57.4]} 23. Kg2 {[%clk 0:01:49.1]}
23... Bc6 {[%clk 0:01:36.6]} 24. a4 {[%clk 0:01:42.2]} 24... Nc4 {[%clk
0:01:33.5]} 25. axb5 {[%clk 0:01:31]} 25... Bxb5 {[%clk 0:01:27.3]} 26. Kg3
{[%clk 0:01:05.2]} 26... Nxe5 {[%clk 0:01:07.2]} 27. Bxb5 {[%clk 0:01:00.2]}
27... axb5 {[%clk 0:00:55.5]} 28. Qxe5+ {[%clk 0:00:42.9]} 28... Qxe5 {[%clk
0:00:54.3]} 29. fxe5 {[%clk 0:00:43.8]} 29... Rc4 {[%clk 0:00:51.5]} 30. Rxb5
{[%clk 0:00:39.7]} 30... Rfc8 {[%clk 0:00:51.9]} 31. Rb3 {[%clk 0:00:35.2]}
31... Rxd4 {[%clk 0:00:51.4]} 32. cxd4 {[%clk 0:00:36.1]} 32... Rxc1 {[%clk
0:00:51.3]} 33. Rd3 {[%clk 0:00:35.1]} 33... Rg1+ {[%clk 0:00:45.1]} 34. Kf3
{[%clk 0:00:35.4]} 34... Rg4 {[%clk 0:00:42.4]} 35. Rd2 {[%clk 0:00:33.4]} 35...
Rxh4 {[%clk 0:00:40.6]} 36. Ke3 {[%clk 0:00:31.6]} 36... Re4+ {[%clk 0:00:36.4]}
37. Kd3 {[%clk 0:00:18.3]} 37... Rg4 {[%clk 0:00:35.9]} 38. f4 {[%clk
0:00:18.8]} 38... Rxf4 {[%clk 0:00:35.8]} 39. Rg2 {[%clk 0:00:19.3]} 39... Rf3+
{[%clk 0:00:29.2]} 40. Ke2 {[%clk 0:00:18.9]} 40... Ra3 {[%clk 0:00:28.6]} 41.
Rg1 {[%clk 0:00:19.4]} 41... Kf8 {[%clk 0:00:26.2]} 42. Kd2 {[%clk 0:00:11.3]}
42... Ke7 {[%clk 0:00:25.7]} 43. Kc2 {[%clk 0:00:10.8]} 43... h4 {[%clk
0:00:25.1]} 44. Rg4 {[%clk 0:00:10.2]} 44... h3 {[%clk 0:00:21.1]} 45. Rh4
{[%clk 0:00:10.9]} 45... h2 {[%clk 0:00:13.2]} 46. Kb2 {[%clk 0:00:10.4]} 46...
Rg3 {[%clk 0:00:11.5]} 47. Rxh2 {[%clk 0:00:10.3]} 47... Rxg5 {[%clk 0:00:12.1]}
48. Kc3 {[%clk 0:00:11.1]} 48... Rg3+ {[%clk 0:00:10.8]} 49. Kd2 {[%clk
0:00:11.6]} 49... Ra3 {[%clk 0:00:10.6]} 50. Rh8 {[%clk 0:00:12.3]} 50... Kd7
{[%clk 0:00:07.3]} 51. Rf8 {[%clk 0:00:12.3]} 51... Ke7 {[%clk 0:00:07.6]} 52.
Rg8 {[%clk 0:00:13]} 52... Rg3 {[%clk 0:00:06]} 53. Ke2 {[%clk 0:00:12.9]} 53...
Rg4 {[%clk 0:00:04.9]} 54. Ke3 {[%clk 0:00:12.9]} 54... Re4+ {[%clk 0:00:04.6]}
55. Kd3 {[%clk 0:00:13.6]} 55... Rf4 {[%clk 0:00:04]} 56. Ra8 {[%clk 0:00:14.5]}
56... g5 {[%clk 0:00:03.4]} 57. Ke3 {[%clk 0:00:14.8]} 57... Rf5 {[%clk
0:00:03.5]} 58. Rg8 {[%clk 0:00:14.4]} 58... Kd7 {[%clk 0:00:03.7]} 59. Rf8
{[%clk 0:00:14.1]} 59... Kc6 {[%clk 0:00:03.9]} 60. Rb8 {[%clk 0:00:14.4]} 60...
Kc7 {[%clk 0:00:03.8]} 61. Ra8 {[%clk 0:00:14.5]} 61... Kc6 {[%clk 0:00:03.6]}
62. Rb8 {[%clk 0:00:14.6]} 62... Kc7 {[%clk 0:00:03.4]} 63. Re8 {[%clk
0:00:15.3]} 63... Kd7 {[%clk 0:00:03.1]} 64. Rg8 {[%clk 0:00:15.4]} 64... Ke7
{[%clk 0:00:02.3]} 65. Rh8 {[%clk 0:00:16.1]} 65... f6 {[%clk 0:00:02.5]} 66.
Rh7+ {[%clk 0:00:16.1]} 66... Ke8 {[%clk 0:00:02.7]} 67. exf6 {[%clk 0:00:15.4]}
67... Rxf6 {[%clk 0:00:03]} 68. Rg7 {[%clk 0:00:16.1]} 68... Rf5 {[%clk
0:00:03.3]} 69. Kd3 {[%clk 0:00:16.4]} 69... Kf8 {[%clk 0:00:02.8]} 70. Rd7
{[%clk 0:00:16.3]} 70... Kg8 {[%clk 0:00:02.6]} 71. Ke3 {[%clk 0:00:16.6]} 71...
Rf7 {[%clk 0:00:02.3]} 72. Rd6 {[%clk 0:00:16.7]} 72... Rf6 {[%clk 0:00:02.5]}
73. Rd7 {[%clk 0:00:16.2]} 73... g4 {[%clk 0:00:02.2]} 74. Ra7 {[%clk
0:00:14.2]} 74... g3 {[%clk 0:00:01.9]} 75. Ra2 {[%clk 0:00:13.9]} 75... Kg7
{[%clk 0:00:01.7]} 76. Rg2 {[%clk 0:00:14.1]} 76... Rg6 {[%clk 0:00:01.9]} 77.
Kf4 {[%clk 0:00:14.8]} 77... Kf6 {[%clk 0:00:02]} 78. Rxg3 {[%clk 0:00:10.3]}
78... Rxg3 {[%clk 0:00:01.7]} 79. Kxg3 {[%clk 0:00:11.2]} 79... Kg5 {[%clk
0:00:01.8]} 80. Kf3 {[%clk 0:00:07.7]} 80... Kf5 {[%clk 0:00:02.5]} 81. Ke3
{[%clk 0:00:07.7]} 81... Kg4 {[%clk 0:00:03.2]} 82. Ke2 {[%clk 0:00:07.1]} 82...
Kf4 {[%clk 0:00:03.9]} 83. Kd3 {[%clk 0:00:07.7]} 83... Kf3 {[%clk 0:00:04.3]}
84. Kd2 {[%clk 0:00:07.9]} 84... Ke4 {[%clk 0:00:05]} 85. Kc3 {[%clk 0:00:08.8]}
85... Ke3 {[%clk 0:00:05.6]} 86. Kc2 {[%clk 0:00:09.3]} 86... Kxd4 {[%clk
0:00:06.3]} 87. Kd2 {[%clk 0:00:10.2]} 87... e5 {[%clk 0:00:06.8]} 88. Ke2
{[%clk 0:00:11.1]} 88... e4 {[%clk 0:00:07.7]} 89. Kd2 {[%clk 0:00:12]} 89...
e3+ {[%clk 0:00:08.3]} 90. Ke2 {[%clk 0:00:09.9]} 90... Ke4 {[%clk 0:00:09.2]}
91. Ke1 {[%clk 0:00:10.6]} 91... d4 {[%clk 0:00:09.8]} 92. Ke2 {[%clk
0:00:11.4]} 92... d3+ {[%clk 0:00:10.4]} 93. Kd1 {[%clk 0:00:12.3]} 93... d2
{[%clk 0:00:10.8]} 94. Ke2 {[%clk 0:00:12.7]} 94... Kd4 {[%clk 0:00:11.6]} 95.
Kd1 {[%clk 0:00:13.2]} 95... Kc3 {[%clk 0:00:12.2]} 96. Ke2 {[%clk 0:00:13.9]}
96... Kc2 {[%clk 0:00:12.6]} 97. Kxe3 {[%clk 0:00:14.8]} 97... d1=Q {[%clk
0:00:13.1]} 98. Ke4 {[%clk 0:00:15.7]} 98... Qd3+ {[%clk 0:00:12.9]} 99. Kf4
{[%clk 0:00:16]} 99... Qe2 {[%clk 0:00:12.7]} 100. Kg3 {[%clk 0:00:16.3]} 100...
Kd3 {[%clk 0:00:13.3]} 101. Kf4 {[%clk 0:00:16.4]} 101... Qe4+ {[%clk
0:00:13.3]} 102. Kg3 {[%clk 0:00:17.3]} 102... Qf5 {[%clk 0:00:13.5]} 103. Kh4
{[%clk 0:00:17.7]} 103... Ke2 {[%clk 0:00:14]} 104. Kg3 {[%clk 0:00:17.8]}
104... Ke3 {[%clk 0:00:14.5]} 105. Kg2 {[%clk 0:00:18.7]} 105... Qg4+ {[%clk
0:00:14.4]} 106. Kh2 {[%clk 0:00:19.6]} 106... Kf2 {[%clk 0:00:14]} 107. Kh1
{[%clk 0:00:20.5]} 107... Qg2# {[%clk 0:00:14.4]} 0-1